Cogmind - Beta 16 @@@ ROGUE MODE // 2025.11.15 @ 22:48:28 Player: guru-sr Result: Destroyed by H-66 Slayer with Gauss Rifle Performance ------------- Evolutions (5) 2500 Regions Visited (11) 2200 Robots Destroyed (119) 595 Value Destroyed (3982) 3982 Prototype IDs (41) 820 Alien Tech Used (0) 0 Bonus (2182) 2182 TOTAL SCORE: 12279 Bonus ------- High Alert Combat Kills 191 Follower Combat Kills 195 Entered Garrisons 200 Used RIF Installer 1000 Registered with UFD 300 Met Optimus in HQ 500 Friendly Fire -204 Cogmind --------- Core Integrity 0/1000 Matter 73/300 Energy 100/100 System Corruption 5% Temperature Cool (0) Movement Core (50) Location -5/Factory Parts ------- > --- POWER (2) -------- (None) > --- PROPULSION (4) --- (None) > --- UTILITY (8) ------ (None) > --- WEAPON (3) ------- (None) > --- INVENTORY (5) ---- Improved Heavy Siege Treads Improved Light Armor Plating Relay Coupler [Heavy] (12) Improved Remote Datajack Peak State ------------ > --- POWER ------------ Light Fission Core Micro Fission Core > --- PROPULSION ------- Flexi-carbon Leg Thunder Leg Thunder Leg Biometal Leg > --- UTILITY ---------- Cryofiber Web Improved Cooling System High-capacity Storage Unit Deep Structural Scanner Advanced Targeting Computer Core Analyzer Hacking Suite Relay Coupler [Swarmer] > --- WEAPON ----------- Enhanced Force Rifle Quantum Rifle Improved Remote Datajack > --- INVENTORY -------- Improved Heavy Siege Treads Flexi-carbon Leg Advanced Heat Sink Energy Well Spectral Analyzer Transmission Jammer Improved Light Armor Plating Improved Light Armor Plating Relay Coupler [Grunt] Relay Coupler [Grunt] Relay Coupler [Heavy] 01-MTF's Shockpuncher KN-7UR's Autopenetrator Heavy Particle Cannon Coil Gun Gamma Bomb Array Improved Remote Datajack Power Maul [Rating: 92] Favorites ----------- Power Deuterium Engine Engine Deuterium Engine Power Core Light Nuclear Core Propulsion Improved Medium Treads Treads Improved Medium Treads Leg Flexi-carbon Leg Wheel Compact Wheel Utility High-capacity Storage Unit Device Improved Cooling System Storage High-capacity Storage Unit Processor Core Analyzer Hackware Relay Coupler [Swarmer] Protection Improved Weapon Shielding Weapon Advanced Beam Rifle Energy Gun Advanced Beam Rifle Energy Cannon Heavy Particle Cannon Ballistic Gun Gauss Rifle Launcher Advanced EMP Blaster Special Weapon Remote Datajack Impact Weapon Power Maul Slashing Weapon Chainsword Special Melee Weapon Improved Datajack Build | -11 -10 -10 -10 -9 -8 -8 -8 -8 -6 -6 -5 ------- Run | Yrd Mat Min Exi Min Mat Sto Rec Scr Fac Gar Fac Slots Evolved 10 | . . . . . 4 . . . 4 . 2 Power 1 | . . . . . . . . . 1 . . Propulsion 2 | . . . . . 1 . . . . . 1 Utility 6 | . . . . . 2 . . . 3 . 1 Weapon 1 | . . . . . 1 . . . . . . Parts Attached 119 | 8 7 3 . 7 19 19 3 6 11 23 13 Power 17 | 2 . 2 . . 2 2 . . 2 5 2 Engine 11 | 2 . 2 . . 1 1 . . 2 3 . Core 6 | . . . . . 1 1 . . . 2 2 Reactor . | . . . . . . . . . . . . Propulsion 37 | 2 3 1 . 2 7 7 1 4 . 7 3 Treads 25 | 1 2 1 . 2 7 7 1 4 . . . Leg 10 | . . . . . . . . . . 7 3 Wheel 2 | 1 1 . . . . . . . . . . Hover . | . . . . . . . . . . . . Flight . | . . . . . . . . . . . . Utility 32 | 2 2 . . 2 3 3 . . 8 7 5 Device 11 | 1 . . . 2 1 2 . . 4 . 1 Storage 2 | 1 1 . . . . . . . . . . Processor 4 | . 1 . . . 1 . . . . 2 . Hackware 9 | . . . . . . . . . 4 2 3 Protection 6 | . . . . . 1 1 . . . 3 1 Artifact . | . . . . . . . . . . . . Weapon 33 | 2 2 . . 3 7 7 2 2 1 4 3 Energy Gun 17 | 1 1 . . 2 5 3 . 1 1 2 1 Energy Cannon 5 | . . . . 1 . 2 1 1 . . . Ballistic Gun 3 | 1 . . . . 1 . . . . . 1 Ballistic Cannon . | . . . . . . . . . . . . Launcher 1 | . . . . . . 1 . . . . . Special Weapon 3 | . 1 . . . . . . . . 1 1 Impact Weapon 2 | . . . . . . 1 . . . 1 . Slashing Weapon 1 | . . . . . 1 . . . . . . Piercing Weapon . | . . . . . . . . . . . . Special Melee Weapon 1 | . . . . . . . 1 . . . . Unidentified Prototypes 7 | . . . . . 1 5 . . . . 1 Parts Lost 21 | . 1 2 . . 3 . . 4 . 5 6 Power 5 | . . 2 . . . . . . . . 3 Propulsion 5 | . . . . . 1 . . . . 3 1 Utility 6 | . 1 . . . . . . 2 . 1 2 Weapon 5 | . . . . . 2 . . 2 . 1 . Highest Loss Streak 6 | . 1 1 . . 2 . . 4 . 2 6 To Critical Strikes . | . . . . . . . . . . . . Average Backups 18 | 3 11 19 20 19 19 19 20 19 18 19 17 Power . | . 1 1 1 1 . . 1 . . . . Propulsion 2 | 2 5 8 8 2 1 . . . 1 1 1 Utility 10 | . 3 5 7 8 9 11 11 11 11 12 9 Weapon 5 | . 2 4 4 7 6 6 6 5 5 4 5 Tool/Special . | . . . . . . . . . . . . Unused Backups 67 | . 3 1 . 7 8 14 3 10 . 6 15 Power 4 | . . . . . 1 2 . . . 1 . Propulsion 9 | . 1 . . 4 1 . . 2 . . 1 Utility 35 | . 1 . . 1 4 7 1 6 . 5 10 Weapon 15 | . 1 1 . 2 2 5 1 . . . 3 Tool/Special 4 | . . . . . . . 1 2 . . 1 Average Slot Usage (%) 97 | . 95 95 100 99 98 99 100 97 94 98 92 Engine 8 | . 14 9 14 14 5 1 9 8 9 9 . Core 1 | . . . . . 3 7 . . . 3 9 Treads 18 | . 14 14 14 14 16 24 27 26 20 6 . Leg 2 | . . . . . . . . . . 13 21 Wheel 4 | . 14 14 14 14 9 2 . . . . . Device 10 | . 10 . . 11 9 13 9 8 23 13 15 Storage 9 | . 14 14 14 14 9 9 9 8 6 6 4 Processor 9 | . . 14 14 2 8 9 9 9 6 15 10 Protection 5 | . . . . . 8 4 9 8 6 6 . Energy Gun 11 | . 13 14 14 16 14 12 9 8 11 13 9 Energy Cannon 5 | . . . . 9 3 5 9 8 4 . . Ballistic Gun 7 | . 13 14 14 1 8 8 8 8 2 1 . Peak Build Rating 92 | 9 11 11 11 19 32 37 40 47 67 71 92 Average Rating 38 | 4 9 10 11 15 27 34 39 43 61 64 79 On Entrance 29 | . 9 11 11 11 15 31 37 40 47 67 71 Avg Prop Armor Cover (%) 13 | 13 12 13 13 13 16 17 . . . . . Naked Turns 40 | . . . . . . . . . . . 40 Heaviest Build 79 | 14 51 50 48 54 60 63 65 65 79 79 72 Greatest Support 94 | 16 16 16 16 16 20 66 66 82 82 82 94 Greatest Overweight (x) 4 | 4 3 3 2 3 3 3 1 2 . 4 1 Average Overweight (x) . | . 1 2 2 2 2 1 . . . . . Largest Inventory Capacity 20 | 8 20 20 20 20 20 20 20 20 20 20 20 Average Capacity 19 | 7 13 20 20 20 20 20 20 19 20 20 19 Most Carried 20 | 6 20 20 20 20 20 20 20 20 20 20 20 Average Carried 18 | 3 11 19 20 19 19 19 19 19 19 19 18 Final Capacity 20 | 8 20 20 20 20 20 20 20 20 20 20 5 Final Carried 20 | 5 19 20 20 20 20 20 20 20 19 20 5 Class Distribution -------------------- 50% | Gunner 13% | Mutant 8% | Bothacker-Gunner 8% | Commander-Mutant 6% | Scavenger-Gunner 3% | Scavenger-Mutant Dominant Class ---------------- Mutant | -10/Materials Commander-Mutant | -10/Mines Commander-Mutant | -10/Exiles Scavenger-Mutant | -9/Mines Gunner | -8/Materials Gunner | -8/Storage Gunner | -8/Recycling Gunner | -8/Scraptown Infiltrator-Gunner | -6/Factory Bothacker-Gunner | -6/Garrison Bothacker-Gunner | -5/Factory Resources | -11 -10 -10 -10 -9 -8 -8 -8 -8 -6 -6 -5 ----------- Run | Yrd Mat Min Exi Min Mat Sto Rec Scr Fac Gar Fac Matter Collected 2739 | 295 199 90 . 113 409 438 108 180 192 585 130 Remotely . | . . . . . . . . . . . . Salvage Created 4692 | 137 474 70 . 140 798 859 350 . 369 1285 210 Parts 253 | 10 29 4 . 3 53 46 15 . 15 61 17 Haulers Intercepted 8 | . 2 . . . 2 4 . . . . . Recyclers Shooed 1 | . . . . . . . 1 . . . . Parts Field Recycled . | . . . . . . . . . . . . Retrieved Matter . | . . . . . . . . . . . . Parts Self-Destructed . | . . . . . . . . . . . . Prevented . | . . . . . . . . . . . . Parts Restored . | . . . . . . . . . . . . Kills | -11 -10 -10 -10 -9 -8 -8 -8 -8 -6 -6 -5 ------- Run | Yrd Mat Min Exi Min Mat Sto Rec Scr Fac Gar Fac Combat Hostiles Destroyed 85 | . 13 5 . 2 14 10 2 . 4 33 2 Guns 71 | . 13 5 . 2 7 7 . . 3 32 2 Cannons 7 | . . . . . 4 1 2 . . . . AOE 4 | . . . . . 3 . . . . 1 . Classes Destroyed 17 | 2 4 1 . . 5 2 . . 1 2 . Worker 6 | . . . . . . 3 . . 2 . 1 Builder 3 | . . . . . 1 1 1 . . . . Tunneler 2 | 2 . . . . . . . . . . . Hauler 8 | . 2 . . . 2 4 . . . . . Recycler 5 | 1 . . . 1 . . 3 . . . . Mechanic 2 | . . . . . . 1 . . . . 1 Operator 3 | . . . . . 1 1 . . . . 1 Watcher 5 | . 1 . . . 4 . . . . . . Swarmer 31 | . 6 3 . 1 3 . . . . 18 . Cutter 2 | . . . . . . . . . . 2 . Grunt 28 | . 7 . . . 4 4 . . 4 9 . Brawler 2 | . . . . . 1 . . . 1 . . Duelist 1 | . . . . . 1 . . . . . . Sentry 16 | . . . . . 5 6 2 . . 3 . Hunter 2 | . . . . . . . . . . 1 1 Programmer 2 | . . . . . . . . . 1 . 1 Assembled 2 | . . 2 . . . . . . . . . Best Kill Streak 9 | 2 3 3 . 1 9 5 4 . 3 5 1 Combat Bots Only 6 | . 3 3 . 1 6 2 1 . 3 5 1 Max Kills in Single Turn 4 | 1 1 1 . 1 4 2 1 . 1 3 1 Gunslinging 1 | . . . . . . 1 . . . 1 . Exploded 3 | . . . . . 3 . . . . 1 . Melee . | . . . . . . . . . . . . Uniques/NPCs Destroyed 1 | . . . . 1 . . . . . . . YI-UF0 (-9/Mines) Combat | -11 -10 -10 -10 -9 -8 -8 -8 -8 -6 -6 -5 -------- Run | Yrd Mat Min Exi Min Mat Sto Rec Scr Fac Gar Fac Hostile Shots Fired 439 | . 48 20 . 6 28 20 6 . 12 157 142 Missed 136 | . 12 8 . . 6 5 1 . 5 53 46 Hits 303 | . 36 12 . 6 22 15 5 . 7 104 96 Melee 4 | . . . . . 2 . . . . 2 . Projectile 299 | . 36 12 . 6 20 15 5 . 7 102 96 AOE 6 | . . . . 5 . . . . . 1 . Critical Strikes 7 | . . . . . 2 1 . . . 1 3 Damage Taken 5181 | . 373 128 . 184 460 345 77 . 130 1575 1909 Core 1445 | . 81 47 . 56 35 46 30 . 16 130 1004 Absorbed by Shields 12 | . . . . . . 12 . . . . . Redirected to Shielding 88 | . . . . . 3 11 9 . 23 42 . Regen/Repaired (Parts) 14 | . . . . . . . . . . . 14 Core Remaining (%) 71 | 100 . . . 26 . . . 79 . 82 . Volleys Fired 247 | 5 46 14 . 6 41 37 8 . 16 49 25 Largest 3 | 2 2 2 . 2 3 3 3 . 3 3 2 Hottest 256 | 60 100 85 . 125 173 159 164 . 256 242 214 Shots Fired 595 | 9 85 24 . 12 111 105 23 . 48 133 45 Gun 515 | 9 79 24 . 7 87 88 15 . 35 131 40 Cannon 67 | . . . . 5 24 17 8 . 13 . . Launcher . | . . . . . . . . . . . . Special 13 | . 6 . . . . . . . . 2 5 Kinetic 179 | 5 39 14 . 1 41 37 7 . 8 27 . Thermal 409 | 4 46 10 . 11 70 68 16 . 40 104 40 Explosive . | . . . . . . . . . . . . Electromagnetic . | . . . . . . . . . . . . Robot Hit Streak 25 | 5 14 5 . 15 18 16 10 . 9 25 11 Robot Miss Streak 7 | 1 2 2 . . 5 2 2 . 3 7 3 Penetration Max 2 | . . . . . 1 1 1 . . 2 1 Secondary Targets 11 | . . 2 . . . 2 . . . 7 . Max Gunslinging Chain 2 | . . 1 . . . 1 . . . 2 . Shots Hit Robots 398 | 7 58 15 . 10 67 64 18 . 33 86 40 Core Hits 229 | 4 24 7 . 6 35 28 6 . 18 92 9 Critical Kills 4 | . 1 . . . . 1 . . . . 2 Critical Parts Destroyed 2 | . . . . . . 1 . . . . 1 Critical Strikes 21 | . 2 1 . . 2 7 1 . 2 3 3 Burn 13 | . 1 1 . . 1 5 1 . 2 2 . Meltdown 1 | . . . . . . 1 . . . . . Destroy 6 | . 1 . . . 1 1 . . . 1 2 Smash 1 | . . . . . . . . . . . 1 Melee Attacks 40 | . . . . . 2 1 6 . . 13 18 Impact 32 | . . . . . . 1 . . . 13 18 Slashing 2 | . . . . . 2 . . . . . . Piercing . | . . . . . . . . . . . . Sneak Attacks 6 | . . . . . . . 6 . . . . Combat Hostiles . | . . . . . . . . . . . . Follow-up Attacks . | . . . . . . . . . . . . Damage Inflicted 8756 | 80 822 223 . 162 1711 1260 220 . 844 2324 1110 Guns 7277 | 80 822 223 . 109 956 985 161 . 692 2324 925 Cannons 802 | . . . . 53 263 275 59 . 152 . . Explosions 492 | . . . . . 492 . . . . . . Melee 185 | . . . . . . . . . . . 185 Ramming . | . . . . . . . . . . . . Kinetic 1805 | 49 360 116 . 14 461 367 52 . 108 278 . Thermal 6331 | 31 462 107 . 148 815 893 168 . 736 2046 925 Explosive 435 | . . . . . 435 . . . . . . Electromagnetic . | . . . . . . . . . . . . Impact 185 | . . . . . . . . . . . 185 Slashing . | . . . . . . . . . . . . Piercing . | . . . . . . . . . . . . Highest Corruption 5 | . . . . . . . . . . . 5 Average Corruption 3 | . . . . . . . . . . . 3 Corruption Purged . | . . . . . . . . . . . . Corruption Blocked . | . . . . . . . . . . . . Effects 2 | . . . . . . . . . . . 2 Matter Fused 1 | . . . . . . . . . . . 1 Energy Discharges 1 | . . . . . . . . . . . 1 Overload Shots . | . . . . . . . . . . . . Overflow Damage 173 | . . . . . 82 . . . 17 . 74 Projectiles 17 | . . . . . . . . . 17 . . Explosions 82 | . . . . . 82 . . . . . . Melee 74 | . . . . . . . . . . . 74 Knockbacks . | . . . . . . . . . . . . Impact . | . . . . . . . . . . . . Kinetic . | . . . . . . . . . . . . Secondary . | . . . . . . . . . . . . Self-Inflicted Damage 112 | . . . . . 112 . . . . . . Shots 1 | . . . . . 1 . . . . . . Rammed . | . . . . . . . . . . . . Targets Rammed . | . . . . . . . . . . . . Kicked . | . . . . . . . . . . . . Crushed . | . . . . . . . . . . . . Highest Temperature 354 | . 246 99 . 63 247 142 51 . 318 354 14 Average Temperature 72 | . 56 47 . 24 69 48 19 . 126 127 11 Received Heat Transfer 802 | . 138 . . . 135 133 27 . 54 198 117 Effects 3 | . . . . . . . . . . 3 . Interference 3 | . . . . . . . . . . 3 . Siege Activations . | . . . . . . . . . . . . Martial Activations . | . . . . . . . . . . . . Shielding Activations . | . . . . . . . . . . . . Robots Disrupted . | . . . . . . . . . . . . Combat Hostiles . | . . . . . . . . . . . . Robots Corrupted . | . . . . . . . . . . . . Combat Hostiles . | . . . . . . . . . . . . Parts Fried 2 | . . . . . . 2 . . . . . Impact Corruptions 4 | . . . . . . . . . . . 4 Robots Melted 3 | . . . . . . 2 . . 1 . . Combat Hostiles 3 | . . . . . . 2 . . 1 . . Parts Melted 32 | . . . . . 3 7 1 . 2 14 5 Heat Transferred 13353 | 75 1173 333 . 333 1781 2146 407 . 1513 4293 1299 Parts Sabotaged 6 | . . . . . . . . . . 6 . Parts Stolen . | . . . . . . . . . . . . Parts Stripped . | . . . . . . . . . . . . Power Chain Reactions . | . . . . . . . . . . . . Alert | -11 -10 -10 -10 -9 -8 -8 -8 -8 -6 -6 -5 ------- Run | Yrd Mat Min Exi Min Mat Sto Rec Scr Fac Gar Fac Maximum Alert Level 4 | . 1 . . . 1 1 . . . 4 2 Low Security (%) 71 | 100 90 100 . 100 25 95 100 . 100 10 45 Level 1 10 | . 9 . . . 74 4 . . . 16 . Level 2 8 | . . . . . . . . . . 22 54 Level 3 9 | . . . . . . . . . . 49 . Level 4 . | . . . . . . . . . . . . Level 5 . | . . . . . . . . . . . . High Security . | . . . . . . . . . . . . Max Security . | . . . . . . . . . . . . Peak Influence 1187 | 5 224 74 . 77 295 235 94 . 71 1187 623 Initial 623 | . . 74 . . . 104 69 . . 42 623 Average 197 | 1 86 11 . 8 207 81 24 . 19 669 348 Influence Increases 3844 | 15 539 70 . 197 576 695 234 . 167 1195 156 Destroy 0b10 Robot/C 1820 | . 260 60 . 140 280 260 40 . 80 660 40 Destroy 0b10 Robot/NC 170 | 15 15 . . 5 40 50 20 . 15 . 10 Destroy Leader 356 | . 56 10 . 30 92 98 . . 20 30 20 Allied During Kill 136 | . . . . 22 . 109 5 . . . . Successful Hack 143 | . 36 . . . 34 26 15 . 18 14 . Select Force Hacks 270 | . 60 . . . . 60 150 . . . . Disable Machine 210 | . 15 . . . 75 75 . . 30 . 15 Anti-Garrison Action 350 | . . . . . . . . . . 350 . Destroy Structure 164 | . 7 . . . 55 2 4 . 4 66 26 Partial Spotted 15 | . 15 . . . . . . . . . . Lose Combat Pursuer 210 | . 75 . . . . 15 . . . 75 45 Influence Decreases 3750 | 15 347 262 . 197 327 766 412 . 106 69 1249 Entered New Map 955 | . . 118 . . . 145 109 . . 19 564 Time Decay 2162 | 15 337 134 . 137 297 487 299 . 106 . 350 Lost Part 160 | . 10 10 . . 30 . . . . 50 60 Lost Ally 160 | . . . . 60 . 100 . . . . . Purge Threat 313 | . . . . . . 34 4 . . . 275 Squads Dispatched 12 | . 2 . . . 1 5 . . 1 . 3 Investigation 5 | . 2 . . . . 3 . . . . . Extermination 2 | . . . . . . . . . 1 . 1 Reinforcement 3 | . . . . . 1 . . . . . 2 Assault 2 | . . . . . . 2 . . . . . Garrison . | . . . . . . . . . . . . Intercept . | . . . . . . . . . . . . Searches Triggered . | . . . . . . . . . . . . Construction Impeded . | . . . . . . . . . . . . Haulers Reinforced . | . . . . . . . . . . . . Active Scanning Responses . | . . . . . . . . . . . . Cargo Convoy Interrupts . | . . . . . . . . . . . . Stealth | -11 -10 -10 -10 -9 -8 -8 -8 -8 -6 -6 -5 --------- Run | Yrd Mat Min Exi Min Mat Sto Rec Scr Fac Gar Fac Distress Signals 7 | . 2 . . . 2 3 . . . . . Communications Jammed 3 | . . . . . . . . . 3 . . Distress Signals . | . . . . . . . . . . . . Times Spotted 162 | . 29 6 . 8 21 38 1 . 5 41 13 Peak Tracking Total 8 | . 4 3 . 4 7 8 1 . 3 7 6 Tactical Retreats 8 | . 3 . . . . 1 . . . 2 2 Traps | -11 -10 -10 -10 -9 -8 -8 -8 -8 -6 -6 -5 ------- Run | Yrd Mat Min Exi Min Mat Sto Rec Scr Fac Gar Fac Traps Triggered 6 | . 1 . . 1 1 1 . . . 2 . Indirectly . | . . . . . . . . . . . . Trap Hack Attempts . | . . . . . . . . . . . . Triggered . | . . . . . . . . . . . . Disarmed . | . . . . . . . . . . . . Reprogrammed . | . . . . . . . . . . . . Reused . | . . . . . . . . . . . . Traps Extracted . | . . . . . . . . . . . . Installed . | . . . . . . . . . . . . Triggered . | . . . . . . . . . . . . Most Traps Carried 3 | . . . . 3 3 3 . . . . . Machines | -11 -10 -10 -10 -9 -8 -8 -8 -8 -6 -6 -5 ---------- Run | Yrd Mat Min Exi Min Mat Sto Rec Scr Fac Gar Fac Machines Disabled 17 | . 1 . . . 5 5 . . 2 3 1 Max in Single Turn 2 | . 1 . . . 2 2 . . 1 1 1 Garrison Access 1 | . . . . . . 1 . . . . . Garrison Relay 3 | . . . . . . . . . . 3 . Machines Repaired . | . . . . . . . . . . . . Machines Dismantled . | . . . . . . . . . . . . Machines Sabotaged . | . . . . . . . . . . . . Overloaded Fab Kills . | . . . . . . . . . . . . Hacking | -11 -10 -10 -10 -9 -8 -8 -8 -8 -6 -6 -5 --------- Run | Yrd Mat Min Exi Min Mat Sto Rec Scr Fac Gar Fac Machines Accessed 69 | . 11 . 4 1 7 12 13 10 3 2 6 Terminals 36 | . 8 . . . 5 8 6 . 2 2 5 Fabricators 1 | . . . . . . . . . . . 1 Repair Stations 3 | . 1 . . . 1 1 . . . . . Recycling Units 9 | . 2 . . . . 2 5 . . . . Scanalyzers 1 | . . . . . 1 . . . . . . Garrison Access 2 | . . . . . . 1 . . 1 . . Total Hacks 315 | . 33 . 49 1 28 40 63 77 7 5 12 Successful 239 | . 17 . 49 1 18 20 49 77 3 1 4 Failed 73 | . 15 . . . 9 20 13 . 4 4 8 Catastrophic 9 | . . . . . 2 2 3 . . . 2 Database Lockouts 3 | . 1 . . . 1 . 1 . . . . Manual 99 | . 25 . . . 11 23 25 . 6 . 9 Terminals 118 | . 27 . . . 19 31 21 . 6 5 9 Fabricators 3 | . . . . . . . . . . . 3 Repair Stations 7 | . 2 . . . 2 3 . . . . . Recycling Units 26 | . 4 . . . . 5 17 . . . . Scanalyzers 7 | . . . . . 7 . . . . . . Garrison Access 2 | . . . . . . 1 . . 1 . . Terminal Hacks 186 | . 7 . 49 1 8 10 32 77 . 1 1 Record 149 | . . . 49 . . . 24 76 . . . Robot Analysis 4 | . 2 . . . . 1 1 . . . . Prototype ID Bank 7 | . 2 . . . 3 2 . . . . . Open Door 2 | . . . . 1 . 1 . . . . . Branch Access Points 1 | . . . . . 1 . . . . . . Terminal Index 4 | . 1 . . . 1 1 . . . . 1 Alert Level 2 | . . . . . . . 2 . . . . Unreport Threat 2 | . . . . . . 1 1 . . . . Locate Traps 3 | . 1 . . . 1 1 . . . . . Recall Reinforcements 1 | . . . . . 1 . . . . . . Zone Layout 8 | . 1 . . . 1 3 3 . . . . Garrison Registry 1 | . . . . . . . . . . 1 . Proto ID Catalog 1 | . . . . . . . . 1 . . . Release Object 1 | . . . . . . . 1 . . . . Fabricator Hacks 1 | . . . . . . . . . . . 1 Network Status 1 | . . . . . . . . . . . 1 Repair Station Hacks 3 | . 1 . . . 1 1 . . . . . Scan Component 3 | . 1 . . . 1 1 . . . . . Recycling Unit Hacks 9 | . 1 . . . . 1 7 . . . . Report Inventory 7 | . 1 . . . . 1 5 . . . . Retrieve Components 2 | . . . . . . . 2 . . . . Scanalyzer 5 | . . . . . 5 . . . . . . Insert Component 2 | . . . . . 2 . . . . . . Analyze 2 | . . . . . 2 . . . . . . Retrieve Study 1 | . . . . . 1 . . . . . . Garrison Access Hacks 2 | . . . . . . 1 . . 1 . . Unlock Access 2 | . . . . . . 1 . . 1 . . Unauthorized Hacks 33 | . 8 . . . 4 7 10 . 2 . 2 Terminals 21 | . 5 . . . 4 5 3 . 2 . 2 Assimilate 3 | . 2 . . . . 1 . . . . . Botnet 12 | . 2 . . . 3 3 2 . 1 . 1 Operators 6 | . 1 . . . 1 1 1 . 1 . 1 Fabricators . | . . . . . . . . . . . . Repair Stations . | . . . . . . . . . . . . Recycling Units 12 | . 3 . . . . 2 7 . . . . Monitor 1 | . . . . . . . 1 . . . . Recyclers 2 | . 1 . . . . . 1 . . . . Tunnel 9 | . 2 . . . . 2 5 . . . . Scanalyzers . | . . . . . . . . . . . . Garrison Access . | . . . . . . . . . . . . Data Cores Recovered 2 | . . . . . . 1 . . 1 . . Used 1 | . . . . . . . . . 1 . . Hacking Detections 48 | . 10 . . . 7 10 10 . 3 2 6 Full Trace Events 2 | . . . . . . 1 1 . . . . Feedback Events . | . . . . . . . . . . . . Feedback Blocked . | . . . . . . . . . . . . Robot Schematics Acquired . | . . . . . . . . . . . . Robots Built . | . . . . . . . . . . . . Authchips . | . . . . . . . . . . . . Time . | . . . . . . . . . . . . Total Robot Build Rating . | . . . . . . . . . . . . Part Schematics Acquired 2 | . . . . . 2 . . . . . . Parts Built . | . . . . . . . . . . . . Authchips . | . . . . . . . . . . . . Time . | . . . . . . . . . . . . Total Part Build Rating . | . . . . . . . . . . . . Part Studies Acquired 1 | . . . . . 1 . . . . . . Parts Repaired . | . . . . . . . . . . . . Time . | . . . . . . . . . . . . Parts Recycled . | . . . . . . . . . . . . Recycled Matter . | . . . . . . . . . . . . Retrieved Matter . | . . . . . . . . . . . . Retrieved Components 5 | . . . . . . . 5 . . . . Parts Scanalyzed 2 | . . . . . 2 . . . . . . Part Schematics Acquired 2 | . . . . . 2 . . . . . . Parts Damaged 1 | . . . . . 1 . . . . . . Bothacking | -11 -10 -10 -10 -9 -8 -8 -8 -8 -6 -6 -5 ------------ Run | Yrd Mat Min Exi Min Mat Sto Rec Scr Fac Gar Fac Used RIF Installer 2 | . . . . . . . . . . 2 . Structural Interface 1 | . . . . . . . . . . 1 . Robots Hacked 9 | . . . . . . . 6 . . 1 2 Non-combat 4 | . . . . . . . 2 . . . 2 Combat 5 | . . . . . . . 4 . . 1 . Robot Hacks Applied 12 | . . . . . . . 6 . . 1 5 parse_system 6 | . . . . . . . 6 . . . . find_station 1 | . . . . . . . . . . . 1 purge_threat 2 | . . . . . . . . . . . 2 amplify_resonance 1 | . . . . . . . . . . 1 . streamctrl_low 1 | . . . . . . . . . . . 1 formatsys_low 1 | . . . . . . . . . . . 1 Relay Couplers Released 16 | . . . . . . 3 . . . 13 . Machine Destruction 16 | . . . . . . 3 . . . 13 . Attached 4 | . . . . . . . . . . 2 2 Fabnet Peak Effective % . | . . . . . . . . . . . . Robots Rewired . | . . . . . . . . . . . . Allies Hacked . | . . . . . . . . . . . . Hacks Repelled . | . . . . . . . . . . . . Allies | -11 -10 -10 -10 -9 -8 -8 -8 -8 -6 -6 -5 -------- Run | Yrd Mat Min Exi Min Mat Sto Rec Scr Fac Gar Fac Total Allies 18 | . 2 5 . . . 10 . . . . 1 Largest Group 10 | . 2 6 6 4 1 10 3 2 2 . 1 Highest-Rated Group 173 | . 20 89 89 50 10 173 48 32 32 . 23 Highest-Rated Ally 31 | . 10 31 31 16 10 29 16 16 16 . 23 Total Orders 33 | . 5 4 . 12 . . . 8 . . 4 STAY 16 | . 3 2 . 6 . . . 4 . . 1 FOLLOW 14 | . 2 2 . 6 . . . 4 . . . AID 3 | . . . . . . . . . . . 3 Ally Attacks 90 | . . 5 . 22 . 58 3 . 2 . . Total Damage 1121 | . . 25 . 191 . 824 47 . 34 . . Kills 13 | . . 1 . 6 . 5 . . 1 . . Allies Corrupted . | . . . . . . . . . . . . Allies Melted . | . . . . . . . . . . . . Intel | -11 -10 -10 -10 -9 -8 -8 -8 -8 -6 -6 -5 ------- Run | Yrd Mat Min Exi Min Mat Sto Rec Scr Fac Gar Fac Active Infowar (turns) 3549 | 11 758 861 569 144 . . . . 343 148 715 Optics 1575 | . 1 861 569 144 . . . . . . . Terrain 768 | 11 757 . . . . . . . . . . Structural 1062 | . . . . . . . . . 343 4 715 Jamming 287 | . . . . . . . . . 139 148 . Robot Analysis Total 4 | . 2 . . . . 1 1 . . . . Derelict Logs Recovered 2 | . . 1 . 1 . . . . . . . Drone Launches . | . . . . . . . . . . . . Drone Recoveries . | . . . . . . . . . . . . Exploration | -11 -10 -10 -10 -9 -8 -8 -8 -8 -6 -6 -5 ------------- Run | Yrd Mat Min Exi Min Mat Sto Rec Scr Fac Gar Fac Turns Passed 14846 | 111 1049 861 569 991 725 1509 1497 4534 392 1817 791 Spaces Moved 8620 | 63 662 605 435 611 314 742 852 2892 186 814 444 Core 158 | 24 . . . . . . . 92 . . 42 Treads 4613 | . . . . . 17 495 852 2800 186 263 . Legs 953 | . . . . . . . . . . 551 402 Wheels 2896 | 39 662 605 435 611 297 247 . . . . . Hover . | . . . . . . . . . . . . Flight . | . . . . . . . . . . . . Fastest Speed 50 | 50 100 130 130 130 145 145 160 50 155 116 50 Average Speed 149 | 98 118 133 130 142 150 164 162 153 155 180 111 Slowest Speed 400 | 250 145 145 130 145 240 200 240 320 155 400 117 Overloaded Moves . | . . . . . . . . . . . . Propulsion Burnouts . | . . . . . . . . . . . . Robots Hopped . | . . . . . . . . . . . . Potential Cave-ins . | . . . . . . . . . . . . Cave-ins Triggered . | . . . . . . . . . . . . Exploration Rate (%) 63 | 6 89 95 93 91 29 87 98 97 4 61 13 Regions Visited 11 Branch Regions 6 Pre-discovered Areas 18 | . 2 . 1 1 . 2 5 7 . . . Known Exits Taken 2 | . . . . . 1 . . . 1 . . Unknown Exits Taken 8 | 1 1 1 1 1 . 1 1 1 . . . Scrap Searched 16 | . . 2 . 1 . . . 13 . . . Spaces Dug 21 | . 5 . . . 2 1 . . . 4 9 Terrain Destroyed 93 | . 5 . . . 54 3 2 . 2 15 12 Melee 15 | . . . . . 2 1 . . . 3 9 Projectile 16 | . 5 . . . . 2 2 . . 4 3 AOE 52 | . . . . . 52 . . . . . . Terrain Rammed . | . . . . . . . . . . . . Walls Destroyed . | . . . . . . . . . . . . Machines Disabled . | . . . . . . . . . . . . Actions | -11 -10 -10 -10 -9 -8 -8 -8 -8 -6 -6 -5 --------- Run | Yrd Mat Min Exi Min Mat Sto Rec Scr Fac Gar Fac Total 10043 | 102 832 636 438 722 481 957 947 2992 254 1026 656 Wait 585 | 17 85 10 4 71 55 76 59 18 21 60 109 Move 8608 | 62 661 604 434 610 313 741 851 2891 185 812 444 Hop . | . . . . . . . . . . . . Pick Up 174 | 9 20 3 . 10 21 33 7 34 7 18 12 Fast Attach 49 | 3 . 2 . 4 4 2 1 12 4 12 5 Attach 38 | 4 2 . . . 6 2 . 4 7 8 5 Detach 2 | . 1 . . . . . . . 1 . . Swap 126 | 1 10 1 . 6 17 24 7 2 5 31 22 Drop 174 | 1 7 2 . 15 22 41 8 31 8 23 16 Fire 247 | 5 46 14 . 6 41 37 8 . 16 49 25 Melee 40 | . . . . . 2 1 6 . . 13 18 Ram . | . . . . . . . . . . . . Kick . | . . . . . . . . . . . . Crush . | . . . . . . . . . . . . Escape Stasis . | . . . . . . . . . . . . Rewire . | . . . . . . . . . . . . Trap . | . . . . . . . . . . . . Miscellaneous . | . . . . . . . . . . . . Route ------- -11/Scrapyard -10/Materials (discovered 3 exits: [*Mat] / [*Min x2]) -10/Mines (discovered 3 exits: [*Mat x2] / *Exi) -10/Exiles (discovered 2 exits: *Min x2) -9/Mines (discovered 2 exits: *Mat x2) -8/Materials (discovered 2 exits: *Sto x2) -8/Storage (discovered 2 exits: [*Fac] / *Rec) -8/Recycling (discovered 2 exits: *Fac / *Scr) -8/Scraptown (discovered 2 exits: *Fac x2) -6/Factory (discovered 4 exits: Fac / *Low x2 / Gar) -6/Garrison (discovered 3 exits: *Fac x3) -5/Factory (discovered 1 exit: [Upp]) History --------- Turn | Location | Event 10 | -11/Scrapyard | Discovered new exit (range 15) 112 | -11/Scrapyard | Entered Materials 165 | -10/Materials | Discovered new exit (range 16) 260 | -10/Materials | Discovered new exit (range 17) 312 | -10/Materials | Build established: Mutant 771 | -10/Materials | Discovered new exit (range 16) 869 | -10/Materials | Central database locked down 1161 | -10/Materials | Entered Mines 1161 | -10/Mines | Accompanied by 1 ally 1269 | -10/Mines | Assembled infested the area 1473 | -10/Mines | Discovered new exit (range 14) 1523 | -10/Mines | Assisted by bots powering up and referring to "LRC-V3" 1570 | -10/Mines | Learned Materials stockpile data 1596 | -10/Mines | Discovered new exit (range 7) 1716 | -10/Mines | Core integrity fell below 50% 1812 | -10/Mines | Build established: Commander-Mutant 2014 | -10/Mines | Deemed a non-threat by the Exiles lab entrance 2015 | -10/Mines | Discovered new exit (range 5) 2022 | -10/Mines | Entered Exiles 2022 | -10/Exiles | Accompanied by 6 allies 2043 | -10/Exiles | Discovered new exit (range 15) 2052 | -10/Exiles | Led the pair of lost Derelicts to a safe place 2078 | -10/Exiles | Met 8R-AWN 2104 | -10/Exiles | Met EX-HEX 2149 | -10/Exiles | Met EX-BIN 2253 | -10/Exiles | Met EX-DEC 2267 | -10/Exiles | Learned location of Zion (-6) 2377 | -10/Exiles | Visited The Gauntlet 2571 | -10/Exiles | Discovered new exit (range 12) 2591 | -10/Exiles | Entered Mines 2591 | -9/Mines | Accompanied by 4 allies 2623 | -9/Mines | Met a Derelict who couldn't figure out how to use a Trap Extractor 2750 | -9/Mines | Found a hidden stash of uninstalled traps 2763 | -9/Mines | Learned 2 Materials zone layouts 2955 | -9/Mines | Discovered new exit (range 5) 3010 | -9/Mines | Lost 3 allies 3143 | -9/Mines | Build established: Scavenger-Mutant 3440 | -9/Mines | YI-UF0 nonchalantly dropped a Grenade Launcher on the ground 3444 | -9/Mines | Discovered new exit (range 11) 3464 | -9/Mines | Destroyed YI-UF0 3474 | -9/Mines | Learned location of Storage (-8) 3582 | -9/Mines | Entered Materials 3582 | -8/Materials | Accompanied by 1 ally 3582 | -8/Materials | Evolved 4 slots: Propulsion x1, Utility x2, Weapon x1 3625 | -8/Materials | Identified exit to Storage 4004 | -8/Materials | Central database locked down 4307 | -8/Materials | Entered Storage 4341 | -8/Storage | Build established: Gunner 4367 | -8/Storage | Met 01-MTF 4674 | -8/Storage | Build established: Scavenger-Gunner 4674 | -8/Storage | Discovered new exit (range 19) 5071 | -8/Storage | Build established: Gunner 5149 | -8/Storage | Discovered new exit (range 17) 5273 | -8/Storage | Assisted by bots powering up and referring to "LRC-V3" 5557 | -8/Storage | Identified exit to Garrison 5583 | -8/Storage | Build established: Commander-Gunner 5668 | -8/Storage | Lost 5 allies 5816 | -8/Storage | Entered Recycling 5816 | -8/Recycling | Accompanied by 4 allies (01-MTF) 5817 | -8/Recycling | Met a Zionite searching for Scraptown 5921 | -8/Recycling | Build established: Gunner 6404 | -8/Recycling | Scanned before Scraplab entrance 6428 | -8/Recycling | Found KN-7UR's Autopenetrator 6431 | -8/Recycling | Found 01-MTF's Shockpuncher 6452 | -8/Recycling | Entered Scraplab 6491 | -8/Recycling | Discovered new exit (range 2) 6874 | -8/Recycling | Discovered new exit (range 16) 7313 | -8/Recycling | Entered Scraptown 7313 | -8/Scraptown | Accompanied by 2 allies 7540 | -8/Scraptown | Learned location of Extension (-4) 8102 | -8/Scraptown | Received an X-ray algorithm 8109 | -8/Scraptown | Visited Awakened 8151 | -8/Scraptown | Visited Shadow of the Wyrm 8205 | -8/Scraptown | Visited Cyclists 8259 | -8/Scraptown | Visited Bundlers 8423 | -8/Scraptown | Visited CPS Storage 8691 | -8/Scraptown | Visited Comm Corps 8842 | -8/Scraptown | Discovered new exit (range 4) 8997 | -8/Scraptown | Visited The Evicted 9062 | -8/Scraptown | Visited UFD Registry 9456 | -8/Scraptown | Registered with UFD as "Macetalker" 9512 | -8/Scraptown | Entered Cyclist Reading Room 9637 | -8/Scraptown | Visited Cartography Club 9731 | -8/Scraptown | Found Surveybot 17 Chip 9872 | -8/Scraptown | Lost 4 parts (2u2w) 9901 | -8/Scraptown | Found Deep Structural Scanner 9915 | -8/Scraptown | Learned location of Warlord (-5) 9915 | -8/Scraptown | Learned location of Cetus (-4) 9915 | -8/Scraptown | Learned 8 Materials zone layouts 9915 | -8/Scraptown | Learned 8 Factory zone layouts 9915 | -8/Scraptown | Learned 12 Factory zone layouts 9915 | -8/Scraptown | Learned 4 Access zone layouts 9915 | -8/Scraptown | Learned 12 Lower Caves zone layouts 9915 | -8/Scraptown | Learned 12 Proximity Caves zone layouts 9915 | -8/Scraptown | Learned 16 Proximity Caves zone layouts 9915 | -8/Scraptown | Learned Storage emergency access door positions 9915 | -8/Scraptown | Learned location of 1 exit from Research 9915 | -8/Scraptown | Learned location of 2 exits from Lower Caves 9915 | -8/Scraptown | Learned location of 3 exits from Lower Caves 10650 | -8/Scraptown | Visited A0-MCA Data Center 10660 | -8/Scraptown | Given an A rating by A0-MCA 10692 | -8/Scraptown | Visited Science Guys 10762 | -8/Scraptown | Visited Junk Repository 10825 | -8/Scraptown | Visited Infowarlord's Domain 10840 | -8/Scraptown | Found Spectral Analyzer 10881 | -8/Scraptown | Visited DA-N13 Charitable Foundation 10901 | -8/Scraptown | Found DCF Scrap (32 items) 10971 | -8/Scraptown | Visited Scrapoid Research Area 11011 | -8/Scraptown | Visited Modified Component R&D 11176 | -8/Scraptown | Discovered new exit (range 3) 11233 | -8/Scraptown | Visited Research Penetration Think Tank 11745 | -8/Scraptown | Met Optimus 11745 | -8/Scraptown | Accepted into 0bPrime 11847 | -8/Scraptown | Entered Factory 11847 | -6/Factory | Accompanied by 2 allies 11847 | -6/Factory | Evolved 4 slots: Power x1, Utility x3 11848 | -6/Factory | Identified exit to Lower Caves 11849 | -6/Factory | Identified exit to Factory 12162 | -6/Factory | Build established: Infiltrator-Gunner 12172 | -6/Factory | Identified exit to Garrison 12239 | -6/Factory | Entered Garrison 12315 | -6/Garrison | Triggered checkpoint 12387 | -6/Garrison | Triggered checkpoint 12417 | -6/Garrison | Triggered checkpoint 12490 | -6/Garrison | Garrison Relay disabled 12575 | -6/Garrison | Triggered checkpoint 12641 | -6/Garrison | Triggered checkpoint 12683 | -6/Garrison | Build established: Gunner 13031 | -6/Garrison | Discovered exit to Factory (range 14) 13111 | -6/Garrison | Installed Relay Interface Framework 13133 | -6/Garrison | Triggered checkpoint 13161 | -6/Garrison | Garrison Relay disabled 13307 | -6/Garrison | Triggered checkpoint 13426 | -6/Garrison | Build established: Bothacker-Gunner 13448 | -6/Garrison | Discovered exit to Factory (range 70) 13448 | -6/Garrison | Discovered exit to Factory (range 50) 13448 | -6/Garrison | Discovered exit to Factory (range 7) 13457 | -6/Garrison | Garrison Relay disabled 13565 | -6/Garrison | Triggered checkpoint 13704 | -6/Garrison | Expanded RIF knowledge: Structural Interface 13906 | -6/Garrison | Spotted B-75 Beast 13909 | -6/Garrison | Found Gamma Bomb Array 14056 | -6/Garrison | Entered Factory 14056 | -5/Factory | Evolved 2 slots: Propulsion x1, Utility x1 14471 | -5/Factory | Discovered new exit (range 8) 14796 | -5/Factory | Released all parts (12) 14833 | -5/Factory | Core integrity fell below 50% 14841 | -5/Factory | Core integrity fell below 20% 14847 | -5/Factory | Destroyed by H-66 Slayer with Gauss Rifle Last Messages --------------- 14796_ Released Hacking Suite. 14796_ Released Power Maul. 14796_ Penetrated by Slug. 14796_ Fabricator disabled. 14799_ Penetrated by Slug. 14801_ System corrupted: Energy discharge (-3). 14807_ Acquired 60 matter. 14808_ Acquired Mic. Fission Core. 14816_ Slug penetrates Wall. 14819_ Penetrated by Slug. 14819_ Mic. Fission Core destroyed. 14820_ Slug penetrates Wall. 14820_ Penetrated by Slug. 14823_ Slug penetrates Wall. 14826_ Penetrated by Slug. 14832_ Slug penetrates Wall. 14833_ Penetrated by Slug. 14842_ Slug penetrates H-66 Slayer. 14843_ Slug penetrates Wall. 14843_ Penetrated by Slug. Map ----- +----------------------------------------------------+ | ???????????????????? ### + ???? ### | | ???????????????????? ### # # ### | | ????????????????????? ### # # ### | | ????????????????????? ### ###### ### | | ????????????????????? ## ###### ### | | ?????????????????????#### ## | | ?????????????????# #?#### ## | | ????????????????! ? ######### ## | | ????????????????? ! ?"" ######### ### | | ????????????????? """ ######### ### | | ???????? # ?? """ ######### ### | | ????????#### ? ! ???###### ####### ### | | ???????? ### ?? !! ????#### ########## ### | | ???????? ### o# !! ####### ##### ### | | ???????? ### # !! ####### ! ##### ### | | ??????? ### # ####### ! ##### ### | | ?###"F ### #####;########## = ## #####+### | | ?###"" ### ## ########+#### # ! | | ?### ### ## h ###### # # """ | | ?#####+#### # h ###### [ # + """ | | ? ### ### T" # Y ######! # # """ | | ? " " + ###### """ # # "" | | ? ### ### # ######] """ # # "" | | ?########## ; % ###### """ # + | | ???????########"# ##;########## # ""T"" ] | | ???????########## ! @Y ![!!Y # """"" | | ???????#########################+######+########+# | | ???????##################### [!][!#[ #### # | | ?????????????############### ""|!==!] + # | | ?????????????############### !!![!= !###### | | ????????????????????????#### "F !!# """"" ###### | | ????????????????????????#### "" /# """"" ###### | | ????????????????????????#### # """ ###### | | ????????????????????????########### ####?? | | ????????????????????????########### ####?? | | ????????????????????????########################?? | | | | | | | | | | | | | | | | | | | | | | | | | | | | | +----------------------------------------------------+ Best States ------------- Heat Dissipation 92 Energy Generation 29 Energy Capacity 340 Matter Stores 300 Matter Capacity 300 Sight Range 18 Terrain Scan Range 16 Terrain Scan Density 10 Jamming Range 12 Base Temperature (-) 100 Armor Coverage 150 Utility Shielding 33 Weapon Shielding 66 Evasion (%) 70 Targeting Accuracy 16 Core Analysis 6 Recoil Reduction 3 Offensive Hacking 20 Relay Coupler Types 2 Relay Coupler Value 47 Trap Extractor Capacity 6 Item Schematics ----------------- Titanium Leg | -8/Materials | Scanalyzed System Shield | -8/Materials | Scanalyzed Robot Schematics ------------------ None Fabricated ------------ Nothing Repaired ---------- Nothing Studied --------- Lgt. Treads | -8/Materials | Hacked Alien Tech Used ----------------- None Achievements -------------- Bob, First Of His Name Civilization 2243 DIY Cooler Error 47 Frienemies Let Me Out Of Here Link The Feds Mindtrick Satisfying You May Approach The Wall You Will Be Upgraded \\IAMDERELICT Challenges ------------ None Game ------ Seed ThunderElectrostormProjector Manual? 0 Play Time 04:45:15 Cumulative 23.3 hours Start 2025.11.14 @ 23:43:10 End 2025.11.15 @ 22:48:28 Sessions 3 Manual Loads 0 Difficulty Rogue Special Mode None Game No. 14 Rogue 14 Adventurer 0 Explorer 0 Win Type - Total 1 Types 1/0/0/0/0/0/0/0/0/0 Lore% 20 Gallery% 20 Achievement% 29 Wizard Run 0 Options --------- Layout 1 ASCII 0 Keyboard 0 Movement Mouse Keybinds 0 Fullscreen 1 Font 24/Smallcaps Map View 50x35 Zoom Use 0% Tactical HUD 1 Map Filters NONE Filters NONE Steam 1 RUN: 994bb32b-3c5d-44f2-b0ca-6d322344544f